[Event "Torneo Nuevo Centro. Jornada 10"]
[Site "Chess.com"]
[Date "2020.08.21"]
[Round "3"]
[White "Gukasov, Artem"]
[Black "Orts Tomás, Marc"]
[Result "0-1"]
[WhiteElo "1441"]
[BlackElo "1858"]
[TimeControl "180+2"]
[EndTime "10:59:09 PDT"]
[Termination "Victoria de Rock-Bishop29 por tiempo"]

1. e4 {[%clk 0:03:01.9]} 1... c5 {[%clk 0:02:58.7]} 2. Nf3 {[%clk 0:02:56.6]}
2... Nc6 {[%clk 0:02:59.4]} 3. d4 {[%clk 0:02:54.3]} 3... cxd4 {[%clk
0:03:01.3]} 4. Nxd4 {[%clk 0:02:52.4]} 4... Nf6 {[%clk 0:03:01.1]} 5. Nc3 {[%clk
0:02:51.1]} 5... e5 {[%clk 0:03:02]} 6. Nxc6 {[%clk 0:02:46.8]} 6... bxc6 {[%clk
0:02:50.9]} 7. Bg5 {[%clk 0:02:46]} 7... Bb4 {[%clk 0:02:51.2]} 8. a3 {[%clk
0:02:32.8]} 8... Bxc3+ {[%clk 0:02:43.1]} 9. bxc3 {[%clk 0:02:17.5]} 9... O-O
{[%clk 0:02:33.9]} 10. Qf3 {[%clk 0:02:07.9]} 10... Bb7 {[%clk 0:02:30.5]} 11.
Bxf6 {[%clk 0:01:59]} 11... Qxf6 {[%clk 0:02:29.8]} 12. Qxf6 {[%clk 0:01:57.7]}
12... gxf6 {[%clk 0:02:31.7]} 13. Bc4 {[%clk 0:01:56.4]} 13... d5 {[%clk
0:02:31.7]} 14. exd5 {[%clk 0:01:52.7]} 14... cxd5 {[%clk 0:02:33.6]} 15. Bb3
{[%clk 0:01:48.8]} 15... Rfc8 {[%clk 0:02:33.6]} 16. O-O-O {[%clk 0:01:44.8]}
16... Rxc3 {[%clk 0:02:20.3]} 17. a4 {[%clk 0:01:43.5]} 17... Rd8 {[%clk
0:02:15.6]} 18. Rd2 {[%clk 0:01:31.8]} 18... d4 {[%clk 0:02:14.1]} 19. Rhd1
{[%clk 0:01:29.2]} 19... Rdc8 {[%clk 0:02:14.7]} 20. Rd3 {[%clk 0:01:25]} 20...
Kf8 {[%clk 0:02:03.4]} 21. Rxc3 {[%clk 0:01:22.6]} 21... Rxc3 {[%clk 0:02:03.8]}
22. f3 {[%clk 0:01:22.9]} 22... Ke7 {[%clk 0:02:01.7]} 23. Rd3 {[%clk 0:01:22]}
23... Rxd3 {[%clk 0:01:50.2]} 24. cxd3 {[%clk 0:01:18.2]} 24... Bc8 {[%clk
0:01:50]} 25. Kc2 {[%clk 0:00:57.2]} 25... Bf5 {[%clk 0:01:32.5]} 26. Bd5 {[%clk
0:00:49.4]} 26... Be6 {[%clk 0:01:27.7]} 27. Bb7 {[%clk 0:00:32.3]} 27... Kd6
{[%clk 0:01:25]} 28. g4 {[%clk 0:00:22.3]} 28... h6 {[%clk 0:01:12.7]} 29. h4
{[%clk 0:00:15.9]} 29... a5 {[%clk 0:00:58]} 30. Be4 {[%clk 0:00:12.8]} 30...
Kc5 {[%clk 0:00:58.4]} 31. Kb2 {[%clk 0:00:06]} 31... Kb4 {[%clk 0:00:48.9]} 32.
Bc6 {[%clk 0:00:04.1]} 32... Bb3 {[%clk 0:00:49.7]} 0

[Event "Torneo Nuevo Centro. Jornada 10"]
[Site "Chess.com"]
[Date "2020.08.21"]
[Round "3"]
[White "Chofre Murcia, Adrián"]
[Black "Bosch Jordà, Ricard"]
[Result "0-1"]
[WhiteElo "1669"]
[BlackElo "1936"]
[TimeControl "180+2"]
[EndTime "10:59:20 PDT"]
[Termination "Victoria de UltimateLimo por jaque mate"]

1. e4 {[%clk 0:03:01.9]} 1... c5 {[%clk 0:02:58.2]} 2. Nc3 {[%clk 0:03:02.6]}
2... Nc6 {[%clk 0:02:59]} 3. f4 {[%clk 0:03:02.7]} 3... g6 {[%clk 0:02:59.7]} 4.
Nf3 {[%clk 0:03:03.4]} 4... Bg7 {[%clk 0:03:00.4]} 5. Bc4 {[%clk 0:03:03.5]}
5... e6 {[%clk 0:03:00.4]} 6. O-O {[%clk 0:03:01.4]} 6... Nge7 {[%clk
0:03:01.2]} 7. d3 {[%clk 0:03:00.2]} 7... O-O {[%clk 0:03:01.6]} 8. Ne2 {[%clk
0:02:56.7]} 8... d5 {[%clk 0:03:02]} 9. exd5 {[%clk 0:02:51.3]} 9... exd5 {[%clk
0:03:03.9]} 10. Bb3 {[%clk 0:02:52.1]} 10... b5 {[%clk 0:02:51.4]} 11. c3 {[%clk
0:02:51.4]} 11... Nf5 {[%clk 0:02:38.3]} 12. a4 {[%clk 0:02:18.7]} 12... Qb6
{[%clk 0:02:00.2]} 13. Kh1 {[%clk 0:02:12]} 13... c4 {[%clk 0:01:56.9]} 14. dxc4
{[%clk 0:02:10.6]} 14... bxc4 {[%clk 0:01:50.5]} 15. Bc2 {[%clk 0:02:10.6]}
15... d4 {[%clk 0:01:21.1]} 16. Bxf5 {[%clk 0:02:08.7]} 16... Bxf5 {[%clk
0:01:20.8]} 17. Nexd4 {[%clk 0:02:03.1]} 17... Rad8 {[%clk 0:01:14.2]} 18. Be3
{[%clk 0:01:51.3]} 18... Nxd4 {[%clk 0:01:12.7]} 19. Nxd4 {[%clk 0:01:45.9]}
19... Qxb2 {[%clk 0:01:13.2]} 20. Qc1 {[%clk 0:01:30.7]} 20... Qxc1 {[%clk
0:01:07.3]} 21. Raxc1 {[%clk 0:01:32.1]} 21... Bd3 {[%clk 0:01:05.8]} 22. Rfd1
{[%clk 0:01:31.7]} 22... Rfe8 {[%clk 0:01:03.5]} 23. Bf2 {[%clk 0:01:29.3]}
23... Re4 {[%clk 0:00:54.6]} 24. g3 {[%clk 0:01:23.9]} 24... Re7 {[%clk
0:00:20.7]} 25. Kg1 {[%clk 0:01:20.1]} 25... Rb7 {[%clk 0:00:17.4]} 26. Re1
{[%clk 0:01:14.5]} 26... Rb2 {[%clk 0:00:14.5]} 27. Re7 {[%clk 0:01:04.4]} 27...
Rdb8 {[%clk 0:00:13]} 28. Rxa7 {[%clk 0:01:01.6]} 28... h5 {[%clk 0:00:12.4]}
29. Rd7 {[%clk 0:00:53.4]} 29... Rd2 {[%clk 0:00:09.4]} 30. a5 {[%clk
0:00:44.7]} 30... Rbb2 {[%clk 0:00:09.5]} 31. Rd8+ {[%clk 0:00:39.9]} 31... Kh7
{[%clk 0:00:09.7]} 32. Be3 {[%clk 0:00:34.4]} 32... Rg2+ {[%clk 0:00:08.8]} 33.
Kh1 {[%clk 0:00:26.3]} 33... Rxh2+ {[%clk 0:00:09.3]} 34. Kg1 {[%clk 0:00:27.5]}
34... Rbg2# {[%clk 0:00:10.2]} 0

[Event "Torneo Nuevo Centro. Jornada 10"]
[Site "Chess.com"]
[Date "2020.08.21"]
[Round "3"]
[White "Sampedro Roig, Josep Francesc"]
[Black "Escalona Moncholi, Felix"]
[Result "0-1"]
[WhiteElo "1821"]
[BlackElo "2079"]
[TimeControl "180+2"]
[EndTime "10:59:26 PDT"]
[Termination "Victoria de SchachSpielerESP por tiempo"]

1. e4 {[%clk 0:03:00.8]} 1... e6 {[%clk 0:03:00.9]} 2. d4 {[%clk 0:03:01.3]}
2... d5 {[%clk 0:03:01.5]} 3. Nd2 {[%clk 0:03:02.4]} 3... Nf6 {[%clk 0:03:02.1]}
4. e5 {[%clk 0:03:03.5]} 4... Nfd7 {[%clk 0:03:03.3]} 5. f4 {[%clk 0:03:04.6]}
5... c5 {[%clk 0:03:04.6]} 6. c3 {[%clk 0:03:05.7]} 6... Nc6 {[%clk 0:03:05.9]}
7. Ne2 {[%clk 0:03:06.7]} 7... Qb6 {[%clk 0:03:04.4]} 8. Nf3 {[%clk 0:03:06.5]}
8... cxd4 {[%clk 0:03:02.4]} 9. cxd4 {[%clk 0:03:07.5]} 9... f6 {[%clk
0:02:58.6]} 10. g3 {[%clk 0:03:07.7]} 10... Bb4+ {[%clk 0:02:56.4]} 11. Bd2
{[%clk 0:03:08.3]} 11... g5 {[%clk 0:02:52]} 12. Bh3 {[%clk 0:03:04.2]} 12... h5
{[%clk 0:01:56.2]} 13. fxg5 {[%clk 0:02:22.4]} 13... fxe5 {[%clk 0:01:47.1]} 14.
Bxb4 {[%clk 0:02:05.6]} 14... Qxb4+ {[%clk 0:01:42.5]} 15. Qd2 {[%clk
0:02:06.3]} 15... e4 {[%clk 0:01:38.9]} 16. a3 {[%clk 0:01:39.5]} 16... Qb6
{[%clk 0:00:54.4]} 17. Nh4 {[%clk 0:01:31.4]} 17... Nf8 {[%clk 0:00:42.2]} 18.
O-O {[%clk 0:01:30.8]} 18... e5 {[%clk 0:00:33.6]} 19. Bxc8 {[%clk 0:01:19.4]}
19... Rxc8 {[%clk 0:00:35.5]} 20. g6 {[%clk 0:01:20.4]} 20... Rg8 {[%clk
0:00:26.3]} 21. Qg5 {[%clk 0:01:00.6]} 21... exd4 {[%clk 0:00:21.6]} 22. Qxd5
{[%clk 0:00:50.1]} 22... d3+ {[%clk 0:00:21]} 23. Kh1 {[%clk 0:00:45.4]} 23...
Ne7 {[%clk 0:00:18.1]} 24. Qf7+ {[%clk 0:00:38.6]} 24... Kd7 {[%clk 0:00:16.6]}
25. Rf6 {[%clk 0:00:31.6]} 25... Qe3 {[%clk 0:00:14.1]} 26. Ng2 {[%clk
0:00:25.9]} 26... Qxe2 {[%clk 0:00:10.5]} 27. g7 {[%clk 0:00:18]} 27... Rxg7
{[%clk 0:00:11.7]} 28. Qxg7 {[%clk 0:00:18.3]} 28... d2 {[%clk 0:00:13.1]} 29.
Rf7 {[%clk 0:00:07.9]} 29... Rc1+ {[%clk 0:00:13.5]} 0

[Event "Torneo Nuevo Centro. Jornada 10"]
[Site "Chess.com"]
[Date "2020.08.21"]
[Round "3"]
[White "Gutierrez Marco, Dario"]
[Black "Chernikov, Vladimir"]
[Result "0-1"]
[WhiteElo "1832"]
[BlackElo "2215"]
[TimeControl "180+2"]
[EndTime "10:59:38 PDT"]
[Termination "Victoria de isla88 por abandono"]

1. e4 {[%clk 0:03:01.9]} 1... d6 {[%clk 0:03:01.2]} 2. d4 {[%clk 0:03:02.7]}
2... Nf6 {[%clk 0:03:02.5]} 3. Nc3 {[%clk 0:03:03.4]} 3... e5 {[%clk 0:03:03.4]}
4. Nf3 {[%clk 0:03:04.1]} 4... Nbd7 {[%clk 0:03:04]} 5. Bc4 {[%clk 0:03:04.8]}
5... Be7 {[%clk 0:03:05.4]} 6. O-O {[%clk 0:03:05.7]} 6... O-O {[%clk 0:03:07]}
7. a4 {[%clk 0:03:07.2]} 7... c6 {[%clk 0:03:07.8]} 8. Ba2 {[%clk 0:03:07.2]}
8... exd4 {[%clk 0:03:01.2]} 9. Nxd4 {[%clk 0:03:09.1]} 9... Re8 {[%clk
0:02:55.6]} 10. Nf5 {[%clk 0:03:07.5]} 10... Ne5 {[%clk 0:02:50]} 11. Nxe7+
{[%clk 0:02:46.6]} 11... Qxe7 {[%clk 0:02:51.9]} 12. Bg5 {[%clk 0:02:43.5]}
12... h6 {[%clk 0:02:42.3]} 13. Bh4 {[%clk 0:02:27]} 13... Ng6 {[%clk 0:02:40]}
14. Bg3 {[%clk 0:02:27.1]} 14... Rd8 {[%clk 0:02:28.1]} 15. f3 {[%clk
0:02:23.4]} 15... Nh5 {[%clk 0:02:26.1]} 16. Qe2 {[%clk 0:02:12.8]} 16... Nxg3
{[%clk 0:02:22.8]} 17. hxg3 {[%clk 0:02:14.7]} 17... Be6 {[%clk 0:02:21.1]} 18.
Bxe6 {[%clk 0:02:05.9]} 18... Qxe6 {[%clk 0:02:23]} 19. Rad1 {[%clk 0:02:07.1]}
19... Qe5 {[%clk 0:02:14.6]} 20. Qf2 {[%clk 0:01:47.7]} 20... Qa5 {[%clk
0:02:01.5]} 21. f4 {[%clk 0:01:20.8]} 21... Qb4 {[%clk 0:01:55.4]} 22. Qd4
{[%clk 0:01:01.8]} 22... Qb6 {[%clk 0:01:34.2]} 23. Qxb6 {[%clk 0:00:58.4]}
23... axb6 {[%clk 0:01:36.1]} 24. b3 {[%clk 0:00:58]} 24... Rd7 {[%clk
0:01:29.4]} 25. Rd2 {[%clk 0:00:58]} 25... Rad8 {[%clk 0:01:14.2]} 26. Rfd1
{[%clk 0:00:57.6]} 26... Nf8 {[%clk 0:01:13.5]} 27. Kf2 {[%clk 0:00:52.5]} 27...
Ne6 {[%clk 0:01:12.7]} 28. Kf3 {[%clk 0:00:48.7]} 28... Kf8 {[%clk 0:01:08.1]}
29. Ne2 {[%clk 0:00:48.5]} 29... Nc5 {[%clk 0:01:04.8]} 30. Nd4 {[%clk
0:00:26.1]} 30... g6 {[%clk 0:01:05.9]} 31. Ne2 {[%clk 0:00:16]} 31... Ke7
{[%clk 0:01:05.2]} 32. Nc3 {[%clk 0:00:16.4]} 32... f5 {[%clk 0:00:58.6]} 33.
exf5 {[%clk 0:00:16.3]} 33... gxf5 {[%clk 0:01:00.5]} 34. Re1+ {[%clk 0:00:17]}
34... Kf6 {[%clk 0:01:01.6]} 35. Red1 {[%clk 0:00:17.7]} 35... d5 {[%clk
0:00:58.6]} 36. Rh1 {[%clk 0:00:16.1]} 36... Ne4 {[%clk 0:00:55.8]} 37. Rd3
{[%clk 0:00:13.7]} 37... Kg6 {[%clk 0:00:52.2]} 38. Ke3 {[%clk 0:00:12.9]} 38...
d4+ {[%clk 0:00:50.9]} 39. Kf3 {[%clk 0:00:11.5]} 39... Nxc3 {[%clk 0:00:50.6]}
40. Re1 {[%clk 0:00:10.6]} 40... Ne4 {[%clk 0:00:51.3]} 41. g4 {[%clk
0:00:08.5]} 41... fxg4+ {[%clk 0:00:48.4]} 42. Kxg4 {[%clk 0:00:10.4]} 42...
Nf2+ {[%clk 0:00:48.7]} 0

[Event "Torneo Nuevo Centro. Jornada 10"]
[Site "Chess.com"]
[Date "2020.08.21"]
[Round "3"]
[White "Sanchis Bon, Sergi"]
[Black "Alvarez Usina, Jordi"]
[Result "0-1"]
[WhiteElo "999"]
[BlackElo "1309"]
[TimeControl "180+2"]
[EndTime "10:59:38 PDT"]
[Termination "Victoria de jordi_alvarez por tiempo"]

1. e4 {[%clk 0:03:01.9]} 1... e5 {[%clk 0:02:59.9]} 2. Qf3 {[%clk 0:03:01.3]}
2... Nf6 {[%clk 0:02:53.8]} 3. g4 {[%clk 0:02:58.8]} 3... h6 {[%clk 0:02:47]} 4.
Bc4 {[%clk 0:02:54.5]} 4... Bc5 {[%clk 0:02:46.2]} 5. h4 {[%clk 0:02:52.8]} 5...
d6 {[%clk 0:02:26.4]} 6. g5 {[%clk 0:02:41.2]} 6... Bg4 {[%clk 0:02:23.7]} 7.
Qg2 {[%clk 0:02:33.8]} 7... hxg5 {[%clk 0:01:49.3]} 8. hxg5 {[%clk 0:02:30.2]}
8... Rxh1 {[%clk 0:01:31.5]} 9. Qxh1 {[%clk 0:02:28.7]} 9... Nfd7 {[%clk
0:01:28]} 10. Qg2 {[%clk 0:02:22.2]} 10... Qxg5 {[%clk 0:01:17.3]} 11. Nh3
{[%clk 0:02:12.4]} 11... Qh4 {[%clk 0:01:15.3]} 12. d3 {[%clk 0:02:00.8]} 12...
Bxh3 {[%clk 0:01:09.9]} 13. Qh2 {[%clk 0:01:46.3]} 13... Nc6 {[%clk 0:01:04.3]}
14. Qg1 {[%clk 0:01:36.9]} 14... Qg4 {[%clk 0:01:02.1]} 15. Qh2 {[%clk
0:01:29.2]} 15... O-O-O {[%clk 0:00:56.2]} 16. Bxf7 {[%clk 0:01:18.2]} 16... Rf8
{[%clk 0:00:54.3]} 17. Bb3 {[%clk 0:01:14.6]} 17... Bxf2+ {[%clk 0:00:47.4]} 18.
Kd2 {[%clk 0:01:04.5]} 18... Be3+ {[%clk 0:00:37.3]} 19. Kxe3 {[%clk 0:00:55.7]}
19... Rf3+ {[%clk 0:00:35]} 20. Kd2 {[%clk 0:00:53.9]} 20... Nd4 {[%clk
0:00:20.8]} 21. Nc3 {[%clk 0:00:40.9]} 21... Qg2+ {[%clk 0:00:19.3]} 22. Qxg2
{[%clk 0:00:39.9]} 22... Bxg2 {[%clk 0:00:20]} 23. Nd5 {[%clk 0:00:24.2]} 23...
Bf1 {[%clk 0:00:18.6]} 24. Ne7+ {[%clk 0:00:20.7]} 24... Kd8 {[%clk 0:00:15.6]}
25. Ng6 {[%clk 0:00:19.5]} 25... Rf6 {[%clk 0:00:14.1]} 26. Nh4 {[%clk
0:00:19.6]} 26... g5 {[%clk 0:00:13.7]} 27. Bd5 {[%clk 0:00:11.3]} 27... gxh4
{[%clk 0:00:12.6]} 28. Bxb7 {[%clk 0:00:09.5]} 28... h3 {[%clk 0:00:13.2]} 29.
Kc3 {[%clk 0:00:08.6]} 29... h2 {[%clk 0:00:13]} 30. Bg5 {[%clk 0:00:07.3]}
30... h1=Q {[%clk 0:00:11.7]} 31. Bxf6+ {[%clk 0:00:06.1]} 31... Nxf6 {[%clk
0:00:12.1]} 32. Kc4 {[%clk 0:00:02.5]} 32... Qg2 {[%clk 0:00:11.3]} 0

[Event "Torneo Nuevo Centro. Jornada 10"]
[Site "Chess.com"]
[Date "2020.08.21"]
[Round "3"]
[White "Garrido Silos, Pablo"]
[Black "Montesinos Diaz, Luis"]
[Result "0-1"]
[WhiteElo "1455"]
[BlackElo "1872"]
[TimeControl "180+2"]
[EndTime "10:59:55 PDT"]
[Termination "Victoria de Gwiso_06 por jaque mate"]

1. e4 {[%clk 0:03:01.9]} 1... c6 {[%clk 0:03:00.5]} 2. d4 {[%clk 0:03:01.9]}
2... d5 {[%clk 0:03:02.4]} 3. Nc3 {[%clk 0:03:01.8]} 3... dxe4 {[%clk
0:03:03.1]} 4. Nxe4 {[%clk 0:03:03.7]} 4... Bf5 {[%clk 0:03:04.2]} 5. Ng3 {[%clk
0:03:04.7]} 5... Bg6 {[%clk 0:03:04.8]} 6. Nh3 {[%clk 0:03:05.8]} 6... Nd7
{[%clk 0:03:02.1]} 7. Nf4 {[%clk 0:03:06.1]} 7... e5 {[%clk 0:03:03]} 8. Nxg6
{[%clk 0:03:00.4]} 8... hxg6 {[%clk 0:03:02.6]} 9. dxe5 {[%clk 0:03:00.4]} 9...
Nxe5 {[%clk 0:03:03.5]} 10. Qxd8+ {[%clk 0:03:01.1]} 10... Rxd8 {[%clk
0:03:05.3]} 11. Bf4 {[%clk 0:02:58.5]} 11... Ng4 {[%clk 0:03:03.1]} 12. Be2
{[%clk 0:02:56.4]} 12... N8f6 {[%clk 0:03:02]} 13. Bxg4 {[%clk 0:02:49.4]} 13...
Nxg4 {[%clk 0:03:02.5]} 14. h3 {[%clk 0:02:50]} 14... Nf6 {[%clk 0:02:59.1]} 15.
O-O {[%clk 0:02:50.8]} 15... Nd5 {[%clk 0:02:56.4]} 16. Rfe1+ {[%clk 0:02:46.6]}
16... Be7 {[%clk 0:02:57.1]} 17. Be3 {[%clk 0:02:34.5]} 17... a6 {[%clk
0:02:39.6]} 18. Bc5 {[%clk 0:02:33.3]} 18... Rd7 {[%clk 0:02:38.9]} 19. Bxe7
{[%clk 0:02:33.2]} 19... Rxe7 {[%clk 0:02:37.7]} 20. Rxe7+ {[%clk 0:02:33.3]}
20... Kxe7 {[%clk 0:02:39.6]} 21. Re1+ {[%clk 0:02:32.2]} 21... Kd7 {[%clk
0:02:39.5]} 22. Rd1 {[%clk 0:02:32.9]} 22... Kc7 {[%clk 0:02:40]} 23. c4 {[%clk
0:02:13]} 23... Nb6 {[%clk 0:02:38.3]} 24. b3 {[%clk 0:02:12.3]} 24... Re8
{[%clk 0:02:37.9]} 25. Kf1 {[%clk 0:02:12.1]} 25... a5 {[%clk 0:02:38.5]} 26.
Rd2 {[%clk 0:02:08.5]} 26... a4 {[%clk 0:02:38.9]} 27. Re2 {[%clk 0:02:05.8]}
27... Rxe2 {[%clk 0:02:30.4]} 28. Kxe2 {[%clk 0:02:05.9]} 28... axb3 {[%clk
0:02:32.3]} 29. axb3 {[%clk 0:02:04.7]} 29... f5 {[%clk 0:02:31.9]} 30. Kd3
{[%clk 0:02:03.3]} 30... Kd6 {[%clk 0:02:31.4]} 31. Ne2 {[%clk 0:02:03.5]} 31...
Nd7 {[%clk 0:02:30.9]} 32. Nf4 {[%clk 0:02:02.1]} 32... g5 {[%clk 0:02:31.3]}
33. Nh5 {[%clk 0:01:54.6]} 33... g6 {[%clk 0:02:31.2]} 34. Ng3 {[%clk
0:01:53.4]} 34... Nc5+ {[%clk 0:02:26.2]} 35. Kc3 {[%clk 0:01:52.8]} 35... Ke5
{[%clk 0:02:25.7]} 36. f3 {[%clk 0:01:47.6]} 36... Ne6 {[%clk 0:02:23.2]} 37.
Nf1 {[%clk 0:01:13.1]} 37... Nf4 {[%clk 0:02:05.9]} 38. Ne3 {[%clk 0:01:10]}
38... Ne2+ {[%clk 0:02:03.8]} 39. Kd2 {[%clk 0:01:03.8]} 39... Nd4 {[%clk
0:02:02]} 40. Kc3 {[%clk 0:01:02.4]} 40... Ne6 {[%clk 0:02:00.2]} 41. Nc2 {[%clk
0:00:54.9]} 41... Kf4 {[%clk 0:01:58.7]} 42. Ne1 {[%clk 0:00:49.2]} 42... Kg3
{[%clk 0:01:58.3]} 43. Kb4 {[%clk 0:00:43.7]} 43... Nf4 {[%clk 0:01:57.2]} 44.
Kc5 {[%clk 0:00:41.5]} 44... Nxg2 {[%clk 0:01:57.7]} 45. Nxg2 {[%clk 0:00:39.9]}
45... Kxg2 {[%clk 0:01:58.6]} 46. Kb6 {[%clk 0:00:41.3]} 46... Kxf3 {[%clk
0:01:59.8]} 47. Kxb7 {[%clk 0:00:42.7]} 47... g4 {[%clk 0:02:01.2]} 48. hxg4
{[%clk 0:00:38.7]} 48... fxg4 {[%clk 0:02:03.1]} 49. Kxc6 {[%clk 0:00:40.1]}
49... g3 {[%clk 0:02:03.7]} 50. c5 {[%clk 0:00:40]} 50... g2 {[%clk 0:02:04.9]}
51. Kb7 {[%clk 0:00:41.1]} 51... g1=Q {[%clk 0:02:05.6]} 52. c6 {[%clk 0:00:42]}
52... Qc5 {[%clk 0:02:04.7]} 53. c7 {[%clk 0:00:40.4]} 53... Qb5+ {[%clk
0:02:05.7]} 54. Ka8 {[%clk 0:00:35.5]} 54... Qa6+ {[%clk 0:02:05]} 55. Kb8
{[%clk 0:00:36.6]} 55... Qb6+ {[%clk 0:02:06.1]} 56. Kc8 {[%clk 0:00:36]} 56...
Qxb3 {[%clk 0:02:06]} 57. Kd8 {[%clk 0:00:36.4]} 57... Qd5+ {[%clk 0:02:05.8]}
58. Kc8 {[%clk 0:00:36.7]} 58... g5 {[%clk 0:02:05.9]} 59. Kb8 {[%clk
0:00:37.2]} 59... Qc6 {[%clk 0:02:03.8]} 60. c8=Q {[%clk 0:00:32.7]} 60... Qxc8+
{[%clk 0:02:00.2]} 61. Kxc8 {[%clk 0:00:34.6]} 61... g4 {[%clk 0:02:01.4]} 62.
Kd7 {[%clk 0:00:36.5]} 62... g3 {[%clk 0:02:03.3]} 63. Ke6 {[%clk 0:00:38.4]}
63... g2 {[%clk 0:02:05]} 64. Ke5 {[%clk 0:00:40.3]} 64... g1=Q {[%clk
0:02:06.3]} 65. Kf5 {[%clk 0:00:40.6]} 65... Qe3 {[%clk 0:02:06.8]} 66. Kf6
{[%clk 0:00:41.3]} 66... Qe4 {[%clk 0:02:03.1]} 67. Kg7 {[%clk 0:00:37.5]} 67...
Qf5 {[%clk 0:02:01.9]} 68. Kh8 {[%clk 0:00:37.8]} 68... Qg4 {[%clk 0:02:02.8]}
69. Kh7 {[%clk 0:00:38.5]} 69... Kf4 {[%clk 0:02:03.7]} 70. Kh6 {[%clk 0:00:40]}
70... Kf5 {[%clk 0:02:03.7]} 71. Kh7 {[%clk 0:00:41.9]} 71... Kf6 {[%clk
0:02:03.8]} 72. Kh8 {[%clk 0:00:43.8]} 72... Qg7# {[%clk 0:02:04.3]} 0

[Event "Torneo Nuevo Centro. Jornada 10"]
[Site "Chess.com"]
[Date "2020.08.21"]
[Round "3"]
[White "Macias Pino, Diego"]
[Black "Yuste Valenzuela, Alejandro"]
[Result "1-0"]
[WhiteElo "2233"]
[BlackElo "1879"]
[TimeControl "180+2"]
[EndTime "10:59:58 PDT"]
[Termination "Victoria de adivinaquiensoy por tiempo"]

1. d4 {[%clk 0:03:01.9]} 1... Nf6 {[%clk 0:02:59.2]} 2. Nf3 {[%clk 0:03:01.7]}
2... d6 {[%clk 0:02:59.8]} 3. c3 {[%clk 0:02:51.1]} 3... g6 {[%clk 0:02:54.4]}
4. Bf4 {[%clk 0:02:51.2]} 4... Bg7 {[%clk 0:02:55.4]} 5. Nbd2 {[%clk 0:02:51.8]}
5... O-O {[%clk 0:02:56.7]} 6. e4 {[%clk 0:02:52.7]} 6... Nfd7 {[%clk
0:02:55.7]} 7. Be3 {[%clk 0:02:47.4]} 7... e5 {[%clk 0:02:56.1]} 8. Bc4 {[%clk
0:02:44.6]} 8... Nc6 {[%clk 0:02:54.8]} 9. O-O {[%clk 0:02:35.8]} 9... a6 {[%clk
0:02:52.3]} 10. a4 {[%clk 0:02:19.7]} 10... Nb6 {[%clk 0:02:40.2]} 11. Ba2
{[%clk 0:02:17.5]} 11... h6 {[%clk 0:02:24.9]} 12. Qc2 {[%clk 0:02:03.2]} 12...
exd4 {[%clk 0:02:17.4]} 13. cxd4 {[%clk 0:02:05.1]} 13... Nb4 {[%clk 0:02:17.8]}
14. Qb3 {[%clk 0:01:44.8]} 14... Nxa2 {[%clk 0:02:14.5]} 15. Qxa2 {[%clk
0:01:46.7]} 15... d5 {[%clk 0:02:10.6]} 16. e5 {[%clk 0:01:45.5]} 16... Be6
{[%clk 0:02:08.1]} 17. Rfc1 {[%clk 0:01:40.9]} 17... Nc4 {[%clk 0:01:51.8]} 18.
Nxc4 {[%clk 0:01:39.7]} 18... dxc4 {[%clk 0:01:53.7]} 19. Qa3 {[%clk 0:01:38.1]}
19... Bd5 {[%clk 0:01:48.8]} 20. Nd2 {[%clk 0:01:38.5]} 20... b5 {[%clk
0:01:45.8]} 21. Qc5 {[%clk 0:01:37.6]} 21... c6 {[%clk 0:01:32.6]} 22. f3 {[%clk
0:01:27.5]} 22... Qd7 {[%clk 0:01:14.2]} 23. Bf2 {[%clk 0:01:18.2]} 23... Be6
{[%clk 0:01:09.9]} 24. Ne4 {[%clk 0:01:16.8]} 24... Qd5 {[%clk 0:00:58]} 25. Qa3
{[%clk 0:01:09.5]} 25... Rfd8 {[%clk 0:00:50.1]} 26. Qc3 {[%clk 0:00:56.4]}
26... Bf5 {[%clk 0:00:38.2]} 27. Nd6 {[%clk 0:00:43.9]} 27... Bd3 {[%clk
0:00:34.8]} 28. b3 {[%clk 0:00:39.4]} 28... Bf8 {[%clk 0:00:29.8]} 29. bxc4
{[%clk 0:00:39.1]} 29... bxc4 {[%clk 0:00:30.3]} 30. Nxc4 {[%clk 0:00:40.4]}
30... Bxc4 {[%clk 0:00:31]} 31. Qxc4 {[%clk 0:00:42.3]} 31... c5 {[%clk
0:00:22.8]} 32. Qxd5 {[%clk 0:00:31.9]} 32... Rxd5 {[%clk 0:00:24.7]} 33. dxc5
{[%clk 0:00:32.2]} 33... Rc8 {[%clk 0:00:24.5]} 34. f4 {[%clk 0:00:24.2]} 34...
Bxc5 {[%clk 0:00:16.6]} 35. Kf1 {[%clk 0:00:25.7]} 35... Rc7 {[%clk 0:00:12.9]}
36. a5 {[%clk 0:00:19]} 36... Kf8 {[%clk 0:00:13.2]} 37. Ra2 {[%clk 0:00:16.3]}
37... Ke8 {[%clk 0:00:14]} 38. Rac2 {[%clk 0:00:17]} 1